[Event "37th ECCC 2022"]
[Site "Mayrhofen"]
[Date "2022.10.05"]
[Round "3.56"]
[White "Milliet, Sophie"]
[Black "Neugebauer, Martin"]
[Result "0-1"]
[ECO "B40"]
[WhiteElo "2363"]
[BlackElo "2517"]
[Annotator "TA"]
[PlyCount "68"]
[EventDate "2022.10.03"]
[EventType "team-tourn"]
[EventCountry "AUT"]
[SourceTitle "playchess.com"]
[Source "ChessBase"]
[SourceQuality "1"]
[TimeControl "40/5400+30:1800+30"]

{[%evp 16,68,12,19,24,13,24,12,44,22,19,-8,-9,-18,-13,-26,-30,-24,-22,-30,-25,-34,-11,-15,0,-26,-37,-40,-39,-92,-83,-193,-197,-518,-521,-620,-616,-709,-706,-728,-713,-678,-670,-707,-708,-971,-957,-1247,-1215,-1618,-1639,-29969,-29970,-5735,-5601]} 1. e4 {[%emt 0:00:03][%cal Be2e4,Be4e5][%mdl 32]} c5 {[%emt 0:00:19]} 2. Nf3 {[%emt 0:00:04]} e6 {[%emt 0:00:20]} 3. c3 {[%emt 0:01:41]} Nf6 {[%emt 0:01:44]} 4. e5 {[%emt 0:00:05]} Nd5 {[%emt 0:00:06]} 5. d4 {[%emt 0:00:15]} cxd4 {[%emt 0:00:46]} 6. cxd4 {[%emt 0:00:03]} d6 {[%emt 0:00:57]} 7. Bc4 {[%emt 0:00:32]} Nc6 {[%emt 0:05:22]} 8. O-O {[%emt 0:00:22]} Be7 {[%emt 0:08:06]} 9. Qe2 {[%emt 0:00:12]} a6 {[%emt 0:05:03] B22: Sicilian: 2 c3.} 10. Re1 {[%emt 0:06:54] [#]} h6 $146 {[%emt 0:06:42]} ({Predecessor:} 10... b5 11. Bxd5 exd5 12. Nc3 Be6 13. exd6 Qxd6 14. Bg5 h6 15. Bxe7 Nxe7 16. Ne5 O-O {½-½ (56) Savchenko,B (2535)-Mezentsev,I (2354) Chess.com INT 2021}) 11. Bd2 {[%emt 0:10:25]} Ndb4 {[%emt 0:09:42] The position is equal.} 12. Bxb4 {[%emt 0:16:14]} Nxb4 {[%emt 0:00:07]} 13. Nc3 {[%emt 0:01:14]} d5 {[%emt 0:06:56]} 14. Bb3 {[%emt 0:00:41]} Bd7 {[%emt 0:00:24]} 15. a3 {[%emt 0:08:26]} Nc6 {[%emt 0:00:44][%cal Bb4c6,Bc6a5,Ba5c4,Bc4b2][%mdl 32]} 16. Bc2 {[%emt 0:00:04]} Rc8 {[%emt 0:02:06]} 17. Qd3 {[%emt 0:07:07]} Na5 {[%emt 0:04:13]} 18. Nd2 {[%emt 0:01:47][%cal Bf3d2,Bd2b3,Bb3c5][%mdl 32]} Bg5 {[%emt 0:03:08][%cal Be7g5,Bg5f4,Bf4d2,Bd2c3,Bc3d4][%mdl 32]} 19. Nb3 {[%emt 0:11:44]} Nc4 {[%emt 0:15:35]} 20. Nc5 {[%emt 0:02:27]} b6 {[%emt 0:05:50]} 21. Nxd7 {[%emt 0:04:04] Strongly threatening Ba4.} Nxb2 {[%emt 0:09:04]} 22. Qg3 {[%emt 0:00:28]} (22. Qxa6 $15 Rxc3 23. Nf6+ Ke7 24. Qb5) 22... Qxd7 $17 {[%emt 0:01:09]} 23. f4 {[%emt 0:07:24] [#]} (23. Reb1 $17 Qc6 24. Rxb2 Qxc3 25. Qxc3 Rxc3 26. Bd1) 23... Bxf4 $1 $19 {[%emt 0:01:11]} 24. Qxg7 {[%emt 0:00:23]} (24. Qxf4 {was the crucial defense.} Rxc3 25. Qd2) 24... Rf8 {[%emt 0:00:07]} 25. Rab1 {[%emt 0:18:00]} Bd2 {[%emt 0:00:51]} 26. Rf1 {[%emt 0:01:23][%cal Og1h1]} Bxc3 {[%emt 0:00:18]} 27. Bg6 {[%emt 0:00:03]} Bxd4+ {[%emt 0:00:22]} 28. Kh1 {[%emt 0:00:00]} Qe7 {[%emt 0:01:22]} 29. Bh5 {[%emt 0:01:38]} Nc4 {[%emt 0:01:12]} 30. Rxf7 {[%emt 0:01:14]} Rxf7 {[%emt 0:00:39]} 31. Rf1 {[%emt 0:00:20]} Nxe5 {[%emt 0:00:30][%cal Oe8d8] [#] Threatens to win with ...Kd8!} 32. Bxf7+ Qxf7 {[%emt 0:00:41][%cal Rf7f1]} 33. Qh8+ {[%emt 0:00:39]} Kd7 {[%emt 0:00:04][%cal Rf7f1]} 34. Rxf7+ {[%emt 0:00:08]} Nxf7 {[%emt 0:00:04] Weighted Error Value: White=1.18/Black=0.04 (flawless)} 0-1

[Event "37th ECCC 2022"]
[Site "Mayrhofen"]
[Date "2022.10.05"]
[Round "3.57"]
[White "Polak, Tomas"]
[Black "Vucinic, Gojko"]
[Result "1-0"]
[ECO "A05"]
[WhiteElo "2502"]
[BlackElo "2380"]
[Annotator "TA"]
[PlyCount "89"]
[EventDate "2022.10.03"]
[EventType "team-tourn"]
[EventCountry "AUT"]
[SourceTitle "playchess.com"]
[Source "ChessBase"]
[SourceQuality "1"]
[TimeControl "40/5400+30:1800+30"]

{[%evp 16,89,25,24,28,15,25,25,29,14,14,14,24,22,16,12,12,-17,0,-8,0,-4,0,0,0,0,0,0,0,0,0,0,0,0,39,39,198,174,222,218,228,233,218,216,492,481,473,457,445,424,700,674,741,741,675,720,702,690,659,619,768,703,1061,1066,910,791,12843,12844,12845,12845,12845,12844,12845,12845,12845,12846]} 1. Nf3 {[%emt 0:00:04]} Nf6 {[%emt 0:07:52]} 2. c4 {[%emt 0:00:16]} g6 {[%emt 0:00:07]} 3. Nc3 {[%emt 0:00:09]} d5 {[%emt 0:00:03]} 4. cxd5 {[%emt 0:00:15]} Nxd5 {[%emt 0:00:03]} 5. e4 {[%emt 0:00:20]} Nxc3 {[%emt 0:00:06]} 6. dxc3 {[%emt 0:00:11]} Qxd1+ {[%emt 0:00:04]} 7. Kxd1 {[%emt 0:00:06]} f6 {[%emt 0:00:25]} 8. Be3 {[%emt 0:00:09]} e5 {[%emt 0:00:28]} 9. Nd2 {[%emt 0:00:11][%cal Bf3d2,Bd2b3,Bb3c5,Bc5d3][%mdl 32]} h5 {[%emt 0:04:20] A16: English Opening: 1...Nf6 with ...d5.} 10. f3 {[%emt 0:03:17]} Nd7 {[%emt 0:11:10]} 11. Nb3 {[%emt 0:04:42]} Nb6 {[%emt 0:00:04] White has an edge.} 12. Kc2 {[%emt 0:03:44]} Bd7 {[%emt 0:07:39]} 13. Nc5 {[%emt 0:01:45]} Bc6 {[%emt 0:00:52]} 14. b3 {[%emt 0:01:24] [#]} Nd7 $146 {[%emt 0:02:16]} ({Predecessor:} 14... Bh6 15. Bxh6 Rxh6 16. a4 Ke7 17. Bb5 Nd7 18. Nd3 Nb8 19. Nb4 a5 20. Bxc6 bxc6 {½-½ (38) So,W (2778)-Aronian,L (2764) Leuven 2018}) 15. Nd3 {[%emt 0:05:10]} a5 {[%emt 0:00:12] Against Nb4} 16. g3 {[%emt 0:08:24]} f5 {[%emt 0:02:42]} 17. Bg2 {[%emt 0:05:58]} fxe4 {[%emt 0:05:21]} 18. fxe4 {[%emt 0:00:06]} Bh6 {[%emt 0:00:29]} 19. Bxh6 {[%emt 0:14:37]} Rxh6 {[%emt 0:07:23]} 20. h4 {[%emt 0:00:06]} Ke7 {[%emt 0:03:09]} 21. Rhf1 {[%emt 0:02:12]} Rg8 {[%emt 0:02:40]} 22. Rae1 $1 {[%emt 0:06:22]} g5 {[%emt 0:10:53] [#] White must now prevent ...gxh4.} 23. Bh3 $1 {[%emt 0:01:59]} g4 {[%emt 0:05:16]} 24. Bg2 {[%emt 0:00:13]} Ke6 {[%emt 0:00:10]} 25. Rf5 {[%emt 0:02:58]} Rf8 $2 {[%emt 0:00:04] [#] Loses the game.} ({Black should play} 25... b6 $14) 26. Nxe5 $1 $18 {[%emt 0:09:04]} Rxf5 {[%emt 0:02:26]} (26... Rhf6 $142) 27. exf5+ {[%emt 0:00:19]} Kxf5 {[%emt 0:00:15]} 28. Nxc6 {[%emt 0:11:26]} bxc6 {[%emt 0:00:06][%mdl 4096] Endgame KRB-KRN} 29. Be4+ {[%emt 0:00:10]} Ke5 $2 {[%emt 0:04:26]} (29... Ke6 30. Bxc6+ Ne5) 30. Bxc6+ $1 {[%emt 0:00:31] White is clearly winning.} Kd6 {[%emt 0:00:02]} 31. Bxd7 {[%emt 0:02:18]} Kxd7 {[%emt 0:00:04] KR-KR} 32. Re5 {[%emt 0:00:08]} Rf6 {[%emt 0:00:03]} (32... a4 $142 33. bxa4 Kd6) 33. Rxa5 {[%emt 0:01:32]} Rf2+ {[%emt 0:00:05]} 34. Kd3 {[%emt 0:00:37]} Rf3+ {[%emt 0:00:06]} 35. Kd4 {[%emt 0:00:57]} Rxg3 {[%emt 0:00:21]} 36. Rxh5 {[%emt 0:00:08]} Rh3 {[%emt 0:00:40]} 37. c4 {[%emt 0:06:50]} Ke6 {[%emt 0:06:57]} 38. Kc5 {[%emt 0:04:28] And now Kc6 would win.} Re3 {[%emt 0:03:29]} 39. Rg5 {[%emt 0:01:09]} Re5+ {[%emt 0:02:39]} 40. Kd4 {[%emt 0:00:11]} Rxg5 {[%emt 0:00:16]} 41. hxg5 {[%emt 0:30:06]} Kf5 {[%emt 0:30:04]} 42. Ke3 {[%emt 0:03:07]} Kxg5 {[%emt 0:00:22]} 43. a4 {[%emt 0:00:21]} Kh4 {[%emt 0:00:02]} 44. Kf2 {[%emt 0:00:06]} ({Not} 44. a5 Kh3 45. Kf2 (45. a6 g3 $16) 45... Kh2 $16) 44... Kh3 {[%emt 0:00:04]} 45. Kg1 {[%emt 0:00:05] Weighted Error Value: White=0.02 (flawless) /Black=0.40} ({Weaker is} 45. a5 Kh2 46. a6 g3+ 47. Ke2 g2 $16) 1-0

[Event "37th ECCC 2022"]
[Site "Mayrhofen"]
[Date "2022.10.05"]
[Round "3.58"]
[White "Matnadze Bujiashvili, Ann"]
[Black "Kusa, Jakub"]
[Result "1/2-1/2"]
[ECO "D02"]
[WhiteElo "2392"]
[BlackElo "2360"]
[Annotator "TA"]
[PlyCount "98"]
[EventDate "2022.10.03"]
[EventType "team-tourn"]
[EventCountry "AUT"]
[SourceTitle "playchess.com"]
[Source "ChessBase"]
[SourceQuality "1"]
[TimeControl "40/5400+30:1800+30"]

{[%evp 12,98,0,0,8,7,9,-5,29,37,46,0,35,35,38,39,37,29,47,39,54,28,65,75,66,57,64,61,64,64,68,69,89,73,69,43,52,43,58,0,15,14,19,20,29,19,18,8,41,0,25,30,42,0,-8,0,0,0,0,0,0,0,0,0,0,0,0,0,0,0,0,0,0,0,0,0,1,0,0,0,2,0,9,2,2,0,10,0,7]} 1. d4 {[%emt 0:00:04]} d5 {[%emt 0:00:08]} 2. Nf3 {[%emt 0:00:07]} e6 {[%emt 0:00:14]} 3. g3 {[%emt 0:00:04]} c5 {[%emt 0:01:10]} 4. c4 {[%emt 0:00:05]} dxc4 {[%emt 0:02:24]} 5. Qa4+ {[%emt 0:00:54]} Nc6 {[%emt 0:00:59]} 6. dxc5 {[%emt 0:00:24]} Nf6 {[%emt 0:01:58]} 7. Bg2 {[%emt 0:01:16]} Bd7 {[%emt 0:03:15] E04: Open Catalan: 5 Nf3.} 8. Qxc4 {[%emt 0:02:42]} Qa5+ {[%emt 0:01:00]} 9. Nbd2 {[%emt 0:03:10] is the legacy move (9.Nc3).} Qxc5 {[%emt 0:06:27]} 10. O-O {[%emt 0:00:11]} Be7 {[%emt 0:02:28]} 11. a3 {[%emt 0:03:08]} (11. Qxc5 $14 Bxc5 12. b3) 11... O-O {[%emt 0:03:59]} 12. Qxc5 {[%emt 0:01:08]} Bxc5 {[%emt 0:00:08]} 13. b4 {[%emt 0:00:05]} Be7 {[%emt 0:03:58]} 14. Bb2 {[%emt 0:00:07]} Rac8 {[%emt 0:08:03]} 15. Rac1 {[%emt 0:00:53]} Rfd8 {[%emt 0:02:28][%cal Bf8d8,Bd8d7,Bd7c7][%mdl 32]} 16. Nb3 {[%emt 0:01:31]} (16. Nc4 $5 {[%cal Rb4b5]}) 16... Be8 {[%emt 0:03:02][%cal Oa7a5]} 17. b5 {[%emt 0:02:06]} Nb8 {[%emt 0:03:00]} 18. Nfd4 {[%emt 0:00:47]} b6 {[%emt 0:08:45]} 19. Bb7 {[%emt 0:04:28]} Rxc1 {[%emt 0:02:58]} 20. Rxc1 {[%emt 0:00:09] Strongly threatening Nc6.} Rd7 {[%emt 0:02:02] [#]} 21. Bf3 $146 {[%emt 0:06:14]} ({Predecessor:} 21. Bg2 Nd5 22. Rc8 Rd8 23. Rxd8 Bxd8 24. Bxd5 exd5 25. Kg2 a6 26. a4 axb5 27. axb5 {0-1 (51) Khodos,G-Krogius,N Soviet Union 1967}) 21... Nd5 {[%emt 0:03:09]} 22. a4 {[%emt 0:09:52]} a6 {[%emt 0:04:48]} 23. h4 {[%emt 0:37:15] White is more active.} Kf8 {[%emt 0:06:46]} 24. h5 {[%emt 0:01:04]} h6 {[%emt 0:05:24]} 25. Bg4 {[%emt 0:02:29]} (25. Kg2 $14) 25... Rc7 {[%emt 0:02:52]} 26. Ra1 {[%emt 0:04:32][%cal Og4e6]} Bd7 {[%emt 0:04:06]} 27. Bf3 {[%emt 0:00:18]} Rc8 {[%emt 0:03:04]} 28. Kg2 {[%emt 0:02:01]} Nb4 {[%emt 0:05:36]} 29. Be4 {[%emt 0:01:36]} Nd5 {[%emt 0:02:18]} 30. Bf3 {[%emt 0:06:45]} Nb4 {[%emt 0:00:08]} 31. Bb7 {[%emt 0:00:06]} Rc7 {[%emt 0:00:34]} 32. bxa6 {[%emt 0:02:55]} (32. Be4 $5 {[%cal Ra4a5]}) 32... N8xa6 {[%emt 0:00:41] The position is equal.} 33. Bf3 {[%emt 0:00:13]} Nc2 {[%emt 0:02:24]} 34. Nxc2 {[%emt 0:00:47]} Rxc2 {[%emt 0:00:07]} 35. Bd4 {[%emt 0:00:15]} Nc5 {[%emt 0:01:27]} 36. Nxc5 {[%emt 0:01:25]} Bxc5 {[%emt 0:00:26]} 37. Bxc5+ {[%emt 0:01:41]} Rxc5 $11 {[%emt 0:00:08][%mdl 4096] Endgame KRB-KRB} 38. Rb1 {[%emt 0:00:17]} Bxa4 {[%emt 0:01:42]} 39. Rxb6 {[%emt 0:00:02]} Rc8 {[%emt 0:00:53]} 40. g4 {[%emt 0:00:13]} Bd7 {[%emt 0:01:46]} 41. Kg3 {[%emt 0:30:55]} Rc5 {[%emt 0:31:15]} 42. Rb7 {[%emt 0:00:28]} Ke7 {[%emt 0:00:51]} 43. Ra7 {[%emt 0:00:54]} Kd8 {[%emt 0:00:31]} 44. Kf4 {[%emt 0:00:54]} Rc7 {[%emt 0:01:18]} 45. Ra5 {[%emt 0:01:47]} f6 {[%emt 0:00:53]} 46. Ra8+ {[%emt 0:01:19]} Rc8 {[%emt 0:00:21]} 47. Ra7 {[%emt 0:01:38]} Rc7 {[%emt 0:00:14]} 48. Ra8+ {[%emt 0:00:05]} Rc8 {[%emt 0:00:05]} 49. Ra7 {[%emt 0:00:04]} Rc7 {[%emt 0:00:06] Weighted Error Value: White=0.09 (flawless) /Black=0.07 (flawless)} 1/2-1/2

[Event "37th ECCC 2022"]
[Site "Mayrhofen"]
[Date "2022.10.05"]
[Round "3.59"]
[White "Roubalik, Jakub"]
[Black "Van Vliet, Dennis"]
[Result "1-0"]
[ECO "A17"]
[WhiteElo "2372"]
[BlackElo "2056"]
[Annotator "TA"]
[PlyCount "70"]
[EventDate "2022.10.03"]
[EventType "team-tourn"]
[EventCountry "AUT"]
[SourceTitle "playchess.com"]
[Source "ChessBase"]
[SourceQuality "1"]
[TimeControl "40/5400+30:1800+30"]

{[%evp 18,70,0,-6,35,26,27,12,31,10,18,8,54,39,62,63,62,74,83,79,97,106,176,170,180,189,191,189,198,198,187,186,185,164,349,321,330,291,342,342,332,319,654,460,429,404,2484,2181,29985,29986,29986,29987,29987,29988,29989]} 1. c4 {[%emt 0:00:04]} e6 {[%emt 0:00:34]} 2. Nc3 {[%emt 0:00:22]} Nf6 {[%emt 0:02:24]} 3. Nf3 {[%emt 0:00:32]} d5 {[%emt 0:01:24]} 4. cxd5 {[%emt 0:01:35]} exd5 {[%emt 0:00:45]} 5. d4 {[%emt 0:00:05]} c6 {[%emt 0:08:30]} 6. Bg5 {[%emt 0:00:39]} Be7 {[%emt 0:01:03]} 7. Qc2 {[%emt 0:00:51]} g6 {[%emt 0:03:13]} 8. e3 {[%emt 0:01:31]} Bf5 {[%emt 0:00:05]} 9. Bd3 {[%emt 0:01:54]} Bxd3 {[%emt 0:03:18]} 10. Qxd3 {[%emt 0:00:02]} h6 {[%emt 0:03:39] D36: Queen's Gambit Declined: Exchange Variation: Main line (5 Bg5 c6 6 Qc2).} 11. Bf4 {[%emt 0:01:55][%cal Bg5f4,Bf4h2,Bh2e5][%mdl 32]} Nbd7 {[%emt 0:05:11]} 12. h3 {[%emt 0:00:45] [#]} Nf8 $146 {[%emt 0:00:32] The position is equal.} ({Predecessor:} 12... Nh5 13. Bh2 O-O 14. g4 Ng7 15. O-O-O b5 16. Kb1 b4 17. Ne2 Ne6 18. Ne5 Nxe5 19. Bxe5 {½-½ (39) Straub,N (2344)-Netzer,J (2301) Deizisau 2004}) 13. Bh2 {[%emt 0:02:04]} Ne6 {[%emt 0:03:01]} 14. Ne5 {[%emt 0:02:25]} Ng7 {[%emt 0:03:44]} (14... O-O $11) 15. g4 {[%emt 0:06:12]} Nd7 {[%emt 0:05:34]} 16. O-O-O {[%emt 0:03:14]} Nxe5 {[%emt 0:01:05]} 17. Bxe5 {[%emt 0:00:18]} Bf6 {[%emt 0:04:42] Black is now going downhill.} 18. f4 {[%emt 0:08:58] White has more active pieces.} Qe7 {[%emt 0:07:50]} 19. e4 {[%emt 0:05:31]} O-O-O {[%emt 0:02:16] [#]} (19... Bxe5 $16 20. fxe5 dxe4 21. Nxe4 (21. Qxe4 O-O-O $14) 21... O-O-O) 20. exd5 $1 $18 {[%emt 0:04:25]} (20. Nxd5 cxd5 21. Qc2+ Kd7 22. Qa4+ Kc8 $16) 20... Bxe5 {[%emt 0:00:33]} 21. dxe5 {[%emt 0:06:29]} ({Don't play} 21. fxe5 $6 cxd5 22. Rhf1 Rhf8 $16) 21... cxd5 {[%emt 0:08:03]} 22. Nxd5 {[%emt 0:02:57]} Qc5+ {[%emt 0:02:46]} 23. Kb1 {[%emt 0:05:15]} Kb8 {[%emt 0:00:33]} 24. Qe4 $36 {[%emt 0:00:50][%mdl 2048] Black is under strong pressure.} h5 {[%emt 0:02:52]} 25. Nf6 {[%emt 0:05:21] [#] Black must now prevent Nd7+.} ({But not} 25. e6 $6 Nxe6 26. f5 gxf5 27. gxf5 Nc7 $14) 25... Ka8 $2 {[%emt 0:04:03]} (25... Qc7 26. Rxd8+ Rxd8) 26. Rxd8+ {[%emt 0:04:34]} Rxd8 {[%emt 0:00:15]} 27. Rc1 {[%emt 0:00:20]} Qb5 {[%emt 0:02:41]} 28. gxh5 {[%emt 0:16:41]} gxh5 {[%emt 0:04:55]} 29. a4 {[%emt 0:08:55]} Qa6 {[%emt 0:05:23]} (29... Qb3 30. Qd4 Rh8) 30. f5 {[%emt 0:02:01]} Kb8 {[%emt 0:01:39]} 31. Rg1 {[%emt 0:02:20][%cal Bc1g1,Bg1g7,Bg7f7][%mdl 32]} ({Weaker is} 31. Qc2 Qd3 $16) 31... Qb6 {[%emt 0:07:32]} (31... Nxf5 $142 32. Qxf5 Qxa4) 32. Rxg7 {[%emt 0:01:25]} Rd1+ {[%emt 0:01:38]} 33. Ka2 {[%emt 0:01:23] White mates.} a6 {[%emt 0:01:17]} 34. Rxf7 {[%emt 0:00:45]} Ka7 {[%emt 0:00:31]} 35. e6 {[%emt 0:01:01]} Rd4 {[%emt 0:00:36] Weighted Error Value: White=0.12 (very precise) /Black=0.66} 1-0

[Event "37th ECCC 2022"]
[Site "Mayrhofen"]
[Date "2022.10.05"]
[Round "3.60"]
[White "Koridze, Lile"]
[Black "Nemec, Jachym"]
[Result "1/2-1/2"]
[ECO "D30"]
[WhiteElo "2134"]
[BlackElo "2345"]
[Annotator "TA"]
[PlyCount "88"]
[EventDate "2022.10.03"]
[EventType "team-tourn"]
[EventCountry "AUT"]
[SourceTitle "playchess.com"]
[Source "ChessBase"]
[SourceQuality "1"]
[TimeControl "40/5400+30:1800+30"]

{[%evp 10,88,20,15,26,0,16,15,9,0,0,-35,-29,-54,-25,-37,-25,-93,-13,0,-25,-8,0,-3,7,0,0,0,0,0,0,0,14,0,0,0,0,0,0,0,0,-77,-50,-64,-24,-31,-8,-9,-8,-8,0,-31,-14,-18,-8,-22,-2,-2,0,0,0,0,0,0,0,0,0,0,0,0,8,8,8,0,0,0,0,0,0,0,0]} 1. d4 {[%emt 0:00:02]} d5 {[%emt 0:00:04]} 2. c4 {[%emt 0:00:03]} c6 {[%emt 0:00:05]} 3. Nf3 {[%emt 0:00:12]} Nf6 {[%emt 0:00:05]} 4. e3 {[%emt 0:00:03]} e6 {[%emt 0:00:08]} 5. Nbd2 {[%emt 0:00:08]} c5 {[%emt 0:03:08]} 6. cxd5 {[%emt 0:09:46]} exd5 {[%emt 0:00:28] D30: Queen's Gambit Declined: Systems without Nc3.} 7. dxc5 {[%emt 0:02:17]} Bxc5 {[%emt 0:00:14]} 8. Bb5+ {[%emt 0:03:45]} Nc6 {[%emt 0:03:24] [#]} 9. Qa4 $146 {[%emt 0:02:53]} ({Predecessor:} 9. O-O O-O 10. Bxc6 bxc6 11. Qc2 Qb6 12. b3 Ba6 13. Re1 Be7 14. Bb2 c5 15. Ng5 {0-1 (31) Dizdarevic,E (2378)-Nikolic,P (2536) Neum 2022}) 9... Bd7 {[%emt 0:01:53]} 10. Nb3 {[%emt 0:03:55]} Bd6 {[%emt 0:03:44]} 11. Bd2 {[%emt 0:06:22]} O-O {[%emt 0:02:39]} (11... a6 $5 {[%cal Ra6b5]} 12. Bxc6 bxc6 $15) 12. O-O {[%emt 0:03:51]} Ne4 {[%emt 0:00:35]} 13. Rfd1 {[%emt 0:13:30]} (13. Bc3 $11) 13... Qf6 {[%emt 0:18:19]} (13... a6 $17 14. Bxc6 bxc6) 14. Bc3 $1 $11 {[%emt 0:05:38]} Nxc3 {[%emt 0:02:29]} 15. bxc3 {[%emt 0:00:05]} a6 {[%emt 0:00:36]} ({Don't take} 15... Qxc3 16. Rxd5 a6 17. Be2 $16 (17. Rxd6 axb5 18. Qxb5 Be6 $16)) 16. Bxc6 {[%emt 0:01:01]} bxc6 {[%emt 0:01:02]} 17. Qd4 {[%emt 0:01:43]} Qh6 {[%emt 0:04:43]} 18. c4 {[%emt 0:07:12]} Rad8 {[%emt 0:10:55]} 19. cxd5 {[%emt 0:06:55]} cxd5 {[%emt 0:00:08]} 20. Rac1 {[%emt 0:01:53]} Bb5 {[%emt 0:03:47]} 21. Qb2 {[%emt 0:05:25] Prevents Be2.} Bc4 {[%emt 0:01:02]} 22. Na5 {[%emt 0:04:00]} Rb8 {[%emt 0:02:19]} 23. Qc2 {[%emt 0:00:41]} Ba3 {[%emt 0:02:09]} 24. Rb1 {[%emt 0:00:34]} Qg6 {[%emt 0:03:56]} 25. e4 {[%emt 0:05:46]} (25. Qxg6 $11 {remains equal.} hxg6 26. Nc6) 25... Rxb1 {[%emt 0:01:07]} (25... Bb5 $5 {[%cal Rd5e4]} 26. Nd4 dxe4 27. Nxb5 Rxb5 28. Rxb5 axb5 $17) 26. Rxb1 {[%emt 0:00:17]} Bb5 {[%emt 0:00:24] This bishop pair is nice.} (26... Rc8 $5 {[%cal Rg6e4]}) 27. Nd4 {[%emt 0:01:43]} dxe4 {[%emt 0:08:44]} 28. Nxb5 {[%emt 0:00:30]} axb5 {[%emt 0:00:04]} 29. Rxb5 {[%emt 0:00:47]} Rd8 {[%emt 0:00:39][%cal Oe4e3] [#] aiming for ...e3!} 30. Rb1 {[%emt 0:01:34]} h5 {[%emt 0:05:52]} 31. Rd1 {[%emt 0:03:00] The position is equal.} Rxd1+ {[%emt 0:03:50]} 32. Qxd1 {[%emt 0:00:04][%mdl 4096] Endgame KQB-KQN} Bc5 {[%emt 0:00:27]} 33. Nc4 $1 {[%emt 0:01:32]} Qf6 {[%emt 0:01:27]} 34. Ne3 {[%emt 0:01:43]} Qc3 {[%emt 0:01:36]} 35. Qe2 {[%emt 0:01:47]} g6 {[%emt 0:00:49]} 36. g3 {[%emt 0:00:37]} Kg7 {[%emt 0:01:36]} 37. Kg2 {[%emt 0:00:35]} Bd4 {[%emt 0:03:07]} 38. a4 {[%emt 0:01:36]} f5 {[%emt 0:01:29]} 39. Nd5 {[%emt 0:03:54]} Qc5 {[%emt 0:01:25]} 40. Nf4 {[%emt 0:00:23]} Qc6 {[%emt 0:01:21] Prevents Ne6+.} 41. Qa2 {[%emt 0:03:11]} e3+ $1 {[%emt 0:10:25]} 42. f3 {[%emt 0:00:09] [#] And now Ne6+ would win.} Be5 {[%emt 0:00:50]} 43. Nd3 {[%emt 0:07:41]} Bd4 {[%emt 0:11:08]} 44. Nf4 {[%emt 0:04:15] Hoping for Ne6+.} Be5 {[%emt 0:00:23] Weighted Error Value: White=0.09 (flawless) /Black=0.10 (very precise)} 1/2-1/2

[Event "37th ECCC 2022"]
[Site "Mayrhofen"]
[Date "2022.10.05"]
[Round "3.61"]
[White "Thybo, Jesper Sondergaard"]
[Black "Bauer, Christian"]
[Result "1/2-1/2"]
[ECO "D30"]
[WhiteElo "2498"]
[BlackElo "2616"]
[Annotator "TA"]
[PlyCount "78"]
[EventDate "2022.10.03"]
[EventType "team-tourn"]
[EventCountry "AUT"]
[SourceTitle "playchess.com"]
[Source "ChessBase"]
[SourceQuality "1"]
[TimeControl "40/5400+30:1800+30"]

{[%evp 13,78,18,13,9,6,9,25,25,37,35,27,20,23,24,35,34,39,22,32,18,27,11,18,14,14,-3,-6,-21,-25,-33,-11,-8,-7,-8,-12,-14,-14,-27,-15,-45,-8,-13,-2,-14,-4,-3,-5,-5,-7,-20,-8,-8,-8,-8,-6,-6,-6,-15,0,0,0,0,0,0,0,-14,0]} 1. d4 {[%emt 0:00:09]} d5 {[%emt 0:00:09]} 2. c4 {[%emt 0:00:34]} e6 {[%emt 0:00:09]} 3. Nf3 {[%emt 0:00:25]} c6 {[%emt 0:00:27]} 4. Nbd2 {[%emt 0:03:15]} Nf6 {[%emt 0:02:27]} 5. g3 {[%emt 0:00:58]} Be7 {[%emt 0:05:04]} 6. Bg2 {[%emt 0:00:36]} O-O {[%emt 0:00:19]} 7. O-O {[%emt 0:01:17]} b6 {[%emt 0:00:11]} 8. b3 {[%emt 0:01:09] E06: Closed Catalan: Early deviations.} Bb7 {[%emt 0:01:32]} 9. Bb2 {[%emt 0:00:43]} Na6 {[%emt 0:07:30]} 10. e3 {[%emt 0:05:12] White has an edge.} c5 {[%emt 0:07:50]} 11. Qe2 {[%emt 0:02:34]} Rc8 {[%emt 0:08:49]} 12. Rfd1 {[%emt 0:08:12]} Qc7 {[%emt 0:12:38]} 13. Rac1 {[%emt 0:03:13] [#]} Qb8 $146 {[%emt 0:02:28]} ({Predecessor:} 13... dxc4 14. Nxc4 Rfd8 15. dxc5 Rxd1+ 16. Rxd1 Qxc5 17. Bxf6 Bxf6 18. Nd6 Bxf3 19. Bxf3 Rd8 {½-½ (33) Keitlinghaus,L (2410)-Garcia Palermo,C (2470) Germany 1989}) 14. cxd5 {[%emt 0:04:21]} Nxd5 {[%emt 0:00:17]} 15. Ne5 {[%emt 0:06:52] And now Nd7 would win.} Nf6 {[%emt 0:06:08] Prevents Nd7.} 16. Bxb7 {[%emt 0:04:49]} Qxb7 {[%emt 0:01:02]} 17. Qf3 {[%emt 0:00:27]} Qxf3 {[%emt 0:07:29]} 18. Ndxf3 {[%emt 0:00:16]} Ne4 {[%emt 0:03:50]} 19. a3 {[%emt 0:02:45]} f6 {[%emt 0:02:36]} 20. Nd3 {[%emt 0:00:53]} Kf7 {[%emt 0:02:06]} 21. Kf1 {[%emt 0:01:16]} b5 {[%emt 0:10:14]} 22. dxc5 {[%emt 0:04:18]} Naxc5 {[%emt 0:00:21]} 23. Nxc5 {[%emt 0:00:12]} Nxc5 {[%emt 0:00:40]} 24. Rc3 {[%emt 0:11:54]} Ne4 {[%emt 0:03:29]} 25. Rcc1 {[%emt 0:02:31]} e5 {[%emt 0:03:15]} 26. Ke2 {[%emt 0:01:09]} Rxc1 {[%emt 0:05:36]} 27. Rxc1 {[%emt 0:00:24] The position is equal.} Rd8 {[%emt 0:00:04]} 28. Rc2 {[%emt 0:05:44]} Ke6 {[%emt 0:00:51]} 29. Ne1 {[%emt 0:06:47]} Nc5 {[%emt 0:02:09]} 30. b4 {[%emt 0:00:23]} Na4 {[%emt 0:00:37]} 31. Nd3 {[%emt 0:00:14]} Nb6 {[%emt 0:03:07]} 32. Rc7 {[%emt 0:08:10]} Rd7 {[%emt 0:00:37]} 33. Nc5+ {[%emt 0:04:16]} Bxc5 {[%emt 0:00:07]} 34. Rxc5 $11 {[%emt 0:00:03][%mdl 4096] Endgame KRB-KRN} Na4 {[%emt 0:02:48][%csl LRb2,LRc5]} 35. Rc2 {[%emt 0:00:26]} Kd5 {[%emt 0:00:27]} 36. Rd2+ {[%emt 0:01:10]} Kc6 {[%emt 0:00:25] [#] Strongly threatening ...Rxd2+.} 37. Rc2+ {[%emt 0:00:11]} Kd5 {[%emt 0:00:33]} 38. Rd2+ {[%emt 0:00:15]} Ke6 {[%emt 0:00:13] Threatens to win with ...Rxd2+.} 39. Rc2 {[%emt 0:00:21]} Kd5 {[%emt 0:00:53] Weighted Error Value: White=0.05 (flawless) /Black=0.05 (flawless)} 1/2-1/2